[Event "Estonian Chess Championship 2021"]
[Site "Tallinn, Paul Keres Chess House, Estonia"]
[Date "2021.12.13"]
[Round "3.5"]
[White "Shishkov, Andrei"]
[Black "Soot, Margus"]
[Result "1-0"]
[TimeControl "90 minutes for first 40 moves and 15 min. for the rest of the game with 30 sec."]
[WhiteTitle "IM"]
[WhiteFideId "4500563"]
[BlackFideId "4501160"]
[WhiteElo "2405"]
[BlackElo "2117"]

1. d4 {[%clk 01:30:58]} {[%emt 00:00:02]} e6 {[%clk 01:30:49]} {[%emt
00:00:11]} 2. c4 {[%clk 01:31:23]} {[%emt 00:00:05]} Bb4+ {[%clk 01:30:56]}
{[%emt 00:00:22]} 3. Bd2 {[%clk 01:31:37]} {[%emt 00:00:16]} Qe7 {[%clk
01:30:25]} {[%emt 00:01:02]} 4. e3 {[%clk 01:22:19]} {[%emt 00:09:48]} Nf6
{[%clk 01:29:06]} {[%emt 00:01:48]} 5. Nc3 {[%clk 01:17:10]} {[%emt 00:05:40]}
Bxc3 {[%clk 01:27:36]} {[%emt 00:01:59]} 6. Bxc3 {[%clk 01:17:25]} {[%emt
00:00:14]} Ne4 {[%clk 01:28:00]} {[%emt 00:00:06]} 7. Rc1 {[%clk 01:17:46]}
{[%emt 00:00:10]} Nxc3 {[%clk 01:28:24]} {[%emt 00:00:06]} 8. Rxc3 {[%clk
01:18:13]} {[%emt 00:00:03]} f5 {[%clk 01:26:16]} {[%emt 00:02:38]} 9. Bd3
{[%clk 00:51:03]} {[%emt 00:27:41]} O-O {[%clk 01:25:23]} {[%emt 00:01:22]} 10.
Nf3 {[%clk 00:49:51]} {[%emt 00:01:42]} d6 {[%clk 01:23:59]} {[%emt 00:01:54]}
11. e4 {[%clk 00:43:27]} {[%emt 00:06:54]} c5 {[%clk 01:14:25]} {[%emt
00:23:47]} 12. O-O {[%clk 00:39:44]} Nc6 {[%clk 01:06:48]} 13. dxc5 {[%clk
00:39:00]} dxc5 {[%clk 01:07:06]} {[%emt 00:00:02]} 14. Re1 {[%clk 00:37:32]}
{[%emt 00:01:58]} Qf6 {[%clk 01:07:24]} {[%emt 00:00:12]} 15. Bc2 {[%clk
00:31:07]} {[%emt 00:06:55]} Rd8 {[%clk 00:56:17]} {[%emt 00:11:36]} 16. Qe2
{[%clk 00:29:45]} {[%emt 00:01:53]} Bd7 {[%clk 00:53:39]} {[%emt 00:44:03]} 17.
h3 {[%clk 00:28:51]} Be8 {[%clk 00:53:06]} 18. exf5 exf5 {[%clk 00:53:18]} 19.
Qe3 {[%clk 00:22:08]} b6 {[%clk 00:45:16]} 20. Qf4 {[%clk 00:19:47]} Bg6 {[%clk
00:43:42]} 21. Rce3 {[%clk 00:11:09]} Rd6 {[%clk 00:42:44]} 22. Ba4 {[%clk
00:06:19]} Nd4 {[%clk 00:39:51]} {[%emt 00:02:18]} 23. Re7 {[%clk 00:05:32]}
{[%emt 00:01:17]} a6 {[%clk 00:21:50]} {[%emt 00:18:32]} 24. Rb7 {[%clk
00:05:25]} {[%emt 00:00:37]} Rf8 {[%clk 00:22:13]} {[%emt 00:00:06]} 25. Ree7
{[%clk 00:02:55]} {[%emt 00:03:00]} Rf7 {[%clk 00:19:52]} {[%emt 00:02:51]} 26.
Re8+ {[%clk 00:02:10]} {[%emt 00:01:15]} Rf8 {[%clk 00:20:15]} {[%emt
00:00:07]} 27. Ree7 {[%clk 00:02:35]} {[%emt 00:00:06]} Rf7 {[%clk 00:20:12]}
{[%emt 00:00:33]} 28. Re8+ {[%clk 00:02:58]} {[%emt 00:00:07]} Rf8 {[%clk
00:20:35]} {[%emt 00:00:06]} 29. Rxf8+ {[%clk 00:03:13]} {[%emt 00:00:15]} Qxf8
{[%clk 00:20:41]} {[%emt 00:00:24]} 30. Kh2 {[%clk 00:03:23]} {[%emt 00:00:21]}
h6 {[%clk 00:18:48]} {[%emt 00:02:22]} 31. Ne5 {[%clk 00:03:01]} {[%emt
00:00:52]} Kh7 {[%clk 00:16:26]} {[%emt 00:02:52]} 32. Nd7 {[%clk 00:03:12]}
{[%emt 00:00:20]} Qe7 {[%clk 00:15:21]} {[%emt 00:01:35]} 33. Nxc5 {[%clk
00:03:28]} {[%emt 00:00:15]} Qd8 {[%clk 00:13:46]} {[%emt 00:02:04]} 34. Nd7
{[%clk 00:03:27]} {[%emt 00:00:32]} Qe7 {[%clk 00:13:55]} {[%emt 00:00:20]} 35.
Nc5 {[%emt 00:01:10]} Qe1 {[%clk 00:02:26]} {[%emt 00:11:57]} 36. Qxd6 {[%emt
00:01:16]} Nf3+ {[%clk 00:02:53]} {[%emt 00:00:01]} 37. Kg3 {[%clk 00:02:15]}
{[%emt 00:00:17]} Nd2 {[%clk 00:01:50]} {[%emt 00:01:34]} 38. Qd4 {[%clk
00:00:44]} {[%emt 00:02:00]} Nf1+ {[%clk 00:01:50]} {[%emt 00:00:31]} 39. Kh4
{[%clk 00:01:09]} {[%emt 00:00:06]} bxc5 {[%clk 00:01:14]} {[%emt 00:01:06]} 40.
Qxg7# {[%clk 00:16:32]} {[%emt 00:00:07]} 1-0

[Event "Estonian Chess Championship 2021"]
[Site "Tallinn, Paul Keres Chess House, Estonia"]
[Date "2021.12.14"]
[Round "4.1"]
[White "Kanep, Meelis"]
[Black "Soot, Margus"]
[Result "1-0"]
[TimeControl "90 minutes for first 40 moves and 15 min. for the rest of the game with 30 sec."]
[WhiteTitle "GM"]
[WhiteFideId "4501047"]
[BlackFideId "4501160"]
[WhiteElo "2433"]
[BlackElo "2117"]

1. d4 {[%clk 01:30:52]} {[%emt 00:00:07]} e6 {[%clk 01:30:54]} {[%emt
00:00:07]} 2. c4 {[%clk 01:30:20]} {[%emt 00:01:02]} Bb4+ {[%clk 01:30:47]}
{[%emt 00:00:37]} 3. Bd2 {[%clk 01:30:07]} {[%emt 00:00:43]} Bxd2+ {[%clk
01:30:13]} {[%emt 00:01:04]} 4. Qxd2 {[%clk 01:30:14]} {[%emt 00:00:23]} Nf6
{[%clk 01:30:00]} {[%emt 00:00:43]} 5. Nc3 {[%clk 01:30:38]} {[%emt 00:00:07]}
d6 {[%clk 01:30:03]} {[%emt 00:00:28]} 6. Nf3 {[%clk 01:30:19]} {[%emt
00:00:48]} Qe7 {[%clk 01:30:15]} {[%emt 00:00:18]} 7. g3 {[%clk 01:18:42]}
{[%emt 00:12:07]} b6 {[%clk 01:25:17]} {[%emt 00:05:28]} 8. Bg2 {[%clk
01:13:34]} {[%emt 00:05:38]} Bb7 {[%clk 01:24:05]} {[%emt 00:01:42]} 9. O-O
{[%clk 01:12:04]} {[%emt 00:02:01]} Ne4 {[%clk 01:21:27]} {[%emt 00:03:07]} 10.
Nxe4 {[%clk 01:12:07]} {[%emt 00:00:27]} Bxe4 {[%clk 01:21:55]} {[%emt
00:00:02]} 11. b4 {[%clk 01:07:29]} {[%emt 00:05:08]} O-O {[%clk 01:21:31]}
{[%emt 00:00:53]} 12. Qe3 {[%clk 01:01:41]} {[%emt 00:06:17]} d5 {[%clk
01:01:17]} {[%emt 00:20:45]} 13. cxd5 {[%clk 00:55:17]} {[%emt 00:06:53]} Bxd5
{[%clk 00:55:56]} {[%emt 00:05:51]} 14. Qc3 {[%clk 00:50:51]} {[%emt 00:04:56]}
a5 {[%clk 00:53:03]} {[%emt 00:03:23]} 15. b5 {[%clk 00:45:30]} {[%emt
00:05:51]} c6 {[%clk 00:51:36]} {[%emt 00:01:57]} 16. Qd3 {[%clk 00:35:16]}
{[%emt 00:10:44]} cxb5 {[%clk 00:50:17]} {[%emt 00:01:50]} 17. Qxb5 {[%clk
00:35:44]} {[%emt 00:00:02]} Qb7 {[%clk 00:45:29]} {[%emt 00:05:17]} 18. Rfe1
{[%clk 00:29:48]} {[%emt 00:06:26]} Na6 {[%clk 00:38:49]} {[%emt 00:07:10]} 19.
a3 {[%clk 00:28:31]} {[%emt 00:01:47]} Rab8 {[%clk 00:29:55]} {[%emt 00:09:24]}
20. e4 {[%clk 00:18:01]} {[%emt 00:11:00]} Bc6 {[%clk 00:28:16]} {[%emt
00:02:09]} 21. Qe2 {[%clk 00:15:42]} {[%emt 00:02:49]} Rfc8 {[%clk 00:23:14]}
{[%emt 00:05:31]} 22. Ne5 {[%clk 00:15:07]} {[%emt 00:01:05]} Ba4 {[%clk
00:23:34]} {[%emt 00:00:10]} 23. d5 {[%clk 00:14:36]} {[%emt 00:01:01]} Rc2
{[%clk 00:21:50]} {[%emt 00:02:13]} 24. Qe3 {[%clk 00:09:21]} {[%emt 00:05:45]}
Qc7 {[%clk 00:17:30]} {[%emt 00:04:51]} 25. Nd3 {[%clk 00:07:03]} {[%emt
00:02:47]} Nc5 {[%clk 00:09:35]} {[%emt 00:08:24]} 26. Nf4 {[%clk 00:06:52]}
{[%emt 00:00:42]} e5 {[%clk 00:09:33]} {[%emt 00:00:32]} 27. Ne2 {[%clk
00:06:52]} {[%emt 00:00:30]} Nb3 {[%clk 00:09:16]} {[%emt 00:00:48]} 28. Rab1
{[%clk 00:06:18]} {[%emt 00:01:04]} Nd2 {[%clk 00:08:07]} {[%emt 00:01:38]} 29.
Rbc1 {[%clk 00:06:08]} {[%emt 00:00:40]} Nb3 {[%clk 00:06:50]} {[%emt
00:01:47]} 30. Rb1 {[%clk 00:05:46]} {[%emt 00:00:53]} Nd2 {[%clk 00:06:19]}
{[%emt 00:01:00]} 31. Rbc1 {[%clk 00:06:15]} {[%emt 00:00:02]} Nb3 {[%clk
00:06:36]} {[%emt 00:00:14]} 32. Rxc2 {[%clk 00:03:15]} {[%emt 00:03:29]} Qxc2
{[%clk 00:07:04]} {[%emt 00:00:02]} 33. Nc3 {[%clk 00:03:34]} {[%emt 00:00:12]}
Nd4 {[%clk 00:07:09]} {[%emt 00:00:25]} 34. Rc1 {[%clk 00:02:12]} {[%emt
00:01:52]} Qb2 {[%clk 00:05:02]} {[%emt 00:02:36]} 35. Bf1 {[%clk 00:02:09]}
{[%emt 00:00:33]} Qxa3 {[%emt 00:00:16]} 36. Nxa4 {[%clk 00:01:27]} {[%emt
00:01:09]} Qxa4 {[%clk 00:05:48]} {[%emt 00:00:01]} 37. Rc7 {[%clk 00:01:37]}
{[%emt 00:00:20]} Qd1 {[%clk 00:05:33]} {[%emt 00:00:44]} 38. Kg2 {[%clk
00:01:40]} {[%emt 00:00:27]} h6 {[%clk 00:05:35]} {[%emt 00:00:28]} 39. Re7
{[%clk 00:00:56]} {[%emt 00:01:14]} f6 {[%clk 00:03:43]} {[%emt 00:02:22]} 40.
d6 {[%clk 00:15:43]} {[%emt 00:00:43]} Kh7 {[%clk 00:16:16]} {[%emt 00:02:58]}
41. Qc3 {[%clk 00:11:49]} {[%emt 00:04:24]} Nc2 {[%clk 00:10:26]} {[%emt
00:06:20]} 42. Rxg7+ {[%clk 00:11:05]} {[%emt 00:01:14]} Kxg7 {[%clk 00:10:08]}
{[%emt 00:00:48]} 43. Qc7+ {[%clk 00:11:30]} {[%emt 00:00:05]} Kg6 {[%clk
00:10:32]} {[%emt 00:00:06]} 44. Qxb8 {[%clk 00:11:43]} {[%emt 00:00:17]} Ne1+
{[%clk 00:10:47]} {[%emt 00:00:15]} 45. Kh1 {[%clk 00:08:12]} {[%emt 00:04:01]}
Qf3+ {[%clk 00:05:52]} {[%emt 00:05:25]} 46. Kg1 {[%clk 00:08:38]} {[%emt
00:00:05]} Qxe4 {[%clk 00:06:18]} {[%emt 00:00:04]} 47. Qg8+ {[%clk 00:06:57]}
{[%emt 00:02:10]} Kh5 {[%clk 00:06:46]} {[%emt 00:00:01]} 48. Qf7+ {[%clk
00:05:54]} {[%emt 00:01:32]} Kg5 {[%clk 00:06:53]} {[%emt 00:00:24]} 49. Qg7+
{[%clk 00:03:51]} {[%emt 00:02:33]} Kh5 {[%clk 00:07:21]} {[%emt 00:00:02]} 50.
g4+ {[%clk 00:03:30]} {[%emt 00:00:52]} Kh4 {[%clk 00:07:43]} {[%emt 00:00:07]}
51. Qxh6+ {[%clk 00:03:14]} {[%emt 00:00:46]} Kxg4 {[%clk 00:08:12]} {[%emt
00:00:01]} 52. Bh3+ {[%clk 00:02:58]} {[%emt 00:00:45]} Kf3 {[%clk 00:08:39]}
{[%emt 00:00:03]} 53. Qh5+ {[%clk 00:03:18]} {[%emt 00:00:10]} Kf4 {[%clk
00:08:48]} {[%emt 00:00:20]} 54. Qg4# {[%clk 00:03:42]} {[%emt 00:00:06]} 1-0

[Event "Estonian Chess Championship 2021"]
[Site "Tallinn, Paul Keres Chess House, Estonia"]
[Date "2021.12.14"]
[Round "4.2"]
[White "Kull, Tormi"]
[Black "Shishkov, Andrei"]
[Result "0-1"]
[TimeControl "90 minutes for first 40 moves and 15 min. for the rest of the game with 30 sec."]
[BlackTitle "IM"]
[WhiteFideId "4510151"]
[BlackFideId "4500563"]
[WhiteElo "1753"]
[BlackElo "2405"]

1. e4 {[%clk 01:30:59]} c5 {[%clk 01:30:57]} {[%emt 00:00:04]} 2. Nf3 {[%clk
01:31:23]} {[%emt 00:00:06]} d6 {[%clk 01:31:23]} {[%emt 00:00:04]} 3. d4
{[%clk 01:31:49]} {[%emt 00:00:04]} cxd4 {[%clk 01:31:49]} {[%emt 00:00:03]} 4.
Nxd4 {[%clk 01:32:14]} {[%emt 00:00:05]} Nf6 {[%clk 01:32:16]} {[%emt
00:00:03]} 5. Nc3 {[%clk 01:32:37]} {[%emt 00:00:08]} a6 {[%clk 01:32:42]}
{[%emt 00:00:04]} 6. f3 {[%clk 01:33:02]} {[%emt 00:00:05]} e5 {[%clk
01:33:04]} {[%emt 00:00:08]} 7. Nb3 {[%clk 01:33:27]} {[%emt 00:00:05]} Be6
{[%clk 01:33:23]} {[%emt 00:00:11]} 8. Be3 {[%clk 01:33:50]} {[%emt 00:00:07]}
h5 {[%clk 01:33:25]} {[%emt 00:00:28]} 9. Qd2 {[%clk 01:34:14]} {[%emt
00:00:06]} Nbd7 {[%clk 01:33:29]} {[%emt 00:00:27]} 10. O-O-O {[%clk 01:34:33]}
{[%emt 00:00:10]} Rc8 {[%clk 01:33:36]} {[%emt 00:00:23]} 11. Kb1 {[%clk
01:34:56]} {[%emt 00:00:07]} Be7 {[%clk 01:33:27]} {[%emt 00:00:39]} 12. g3
{[%clk 01:35:08]} {[%emt 00:00:18]} g6 {[%clk 01:20:35]} {[%emt 00:13:22]} 13.
h3 {[%clk 01:32:18]} {[%emt 00:03:20]} Qc7 {[%clk 01:14:57]} {[%emt 00:06:09]}
14. Rh2 {[%clk 01:30:30]} {[%emt 00:02:18]} Kf8 {[%clk 01:02:12]} {[%emt
00:13:15]} 15. Rf2 {[%clk 01:23:34]} {[%emt 00:07:26]} b5 {[%clk 00:53:10]}
{[%emt 00:09:32]} 16. Bg2 {[%clk 01:19:20]} {[%emt 00:04:43]} Nb6 {[%clk
00:44:04]} {[%emt 00:09:37]} 17. Bxb6 {[%clk 01:18:22]} {[%emt 00:01:28]} Qxb6
{[%clk 00:44:20]} {[%emt 00:00:14]} 18. f4 {[%clk 01:18:15]} {[%emt 00:00:37]}
b4 {[%clk 00:40:07]} {[%emt 00:04:44]} 19. Nd5 {[%clk 01:14:30]} {[%emt
00:04:14]} Nxd5 {[%clk 00:40:30]} {[%emt 00:00:07]} 20. exd5 {[%clk 01:14:53]}
{[%emt 00:00:07]} Bf5 {[%clk 00:40:41]} {[%emt 00:00:19]} 21. Rc1 {[%clk
01:11:54]} {[%emt 00:03:28]} Bf6 {[%clk 00:37:30]} {[%emt 00:03:41]} 22. Qe2
{[%clk 01:07:01]} {[%emt 00:05:23]} Kg7 {[%clk 00:34:12]} {[%emt 00:03:48]} 23.
Qf3 {[%clk 00:53:14]} {[%emt 00:14:16]} exf4 {[%clk 00:30:41]} {[%emt
00:04:02]} 24. g4 {[%clk 00:52:04]} {[%emt 00:01:40]} hxg4 {[%clk 00:30:00]}
{[%emt 00:01:11]} 25. hxg4 {[%clk 00:52:26]} {[%emt 00:00:08]} Bxg4 {[%clk
00:29:35]} {[%emt 00:00:56]} 26. Qxf4 {[%clk 00:52:40]} {[%emt 00:00:16]} Bf5
{[%clk 00:29:24]} {[%emt 00:00:40]} 27. Rcf1 {[%clk 00:49:31]} {[%emt
00:03:39]} a5 {[%clk 00:23:04]} {[%emt 00:06:51]} 28. Rd2 {[%clk 00:36:02]}
{[%emt 00:13:58]} Be5 {[%clk 00:16:26]} {[%emt 00:07:09]} 29. Qg5 {[%clk
00:32:45]} {[%emt 00:03:46]} f6 {[%clk 00:16:16]} {[%emt 00:00:41]} 0-1

[Event "Estonian Chess Championship 2021"]
[Site "Tallinn, Paul Keres Chess House, Estonia"]
[Date "2021.12.14"]
[Round "4.3"]
[White "Andrijashkin, Deniss"]
[Black "Volodin, Aleksandr"]
[Result "0-1"]
[TimeControl "90 minutes for first 40 moves and 15 min. for the rest of the game with 30 sec."]
[BlackTitle "GM"]
[WhiteFideId "4504631"]
[BlackFideId "4501950"]
[WhiteElo "2036"]
[BlackElo "2461"]

1. e4 {[%clk 01:30:58]} {[%emt 00:00:01]} c5 {[%clk 01:22:27]} {[%emt
00:08:33]} 2. Nf3 {[%clk 01:31:23]} {[%emt 00:00:05]} d6 {[%clk 01:22:52]}
{[%emt 00:00:05]} 3. d4 {[%clk 01:31:12]} {[%emt 00:00:41]} cxd4 {[%clk
01:23:17]} {[%emt 00:00:05]} 4. Nxd4 {[%clk 01:31:39]} {[%emt 00:00:03]} Nf6
{[%clk 01:23:41]} {[%emt 00:00:06]} 5. Nc3 {[%clk 01:32:06]} {[%emt 00:00:04]}
a6 {[%clk 01:24:08]} {[%emt 00:00:03]} 6. Rg1 {[%clk 01:32:13]} {[%emt
00:00:22]} Nc6 {[%clk 01:22:13]} {[%emt 00:02:24]} 7. Nb3 {[%clk 01:12:23]}
{[%emt 00:20:20]} b5 {[%clk 01:15:55]} {[%emt 00:06:48]} 8. g4 {[%clk
01:12:03]} {[%emt 00:00:50]} e6 {[%clk 01:08:36]} {[%emt 00:07:49]} 9. g5
{[%clk 01:10:51]} {[%emt 00:01:42]} Nd7 {[%clk 01:08:59]} {[%emt 00:00:07]} 10.
Be3 {[%clk 01:03:36]} {[%emt 00:07:45]} Bb7 {[%clk 01:09:15]} {[%emt 00:00:13]}
11. f4 {[%clk 00:54:37]} {[%emt 00:09:30]} Na5 {[%clk 01:09:28]} {[%emt
00:00:16]} 12. f5 {[%clk 00:36:41]} {[%emt 00:18:26]} b4 {[%clk 01:06:17]}
{[%emt 00:03:41]} 13. fxe6 {[%clk 00:36:53]} {[%emt 00:00:19]} fxe6 {[%clk
01:06:43]} {[%emt 00:00:04]} 14. Na4 {[%clk 00:35:20]} {[%emt 00:02:02]} Bxe4
{[%clk 00:49:05]} {[%emt 00:18:08]} 15. Qg4 {[%clk 00:29:28]} {[%emt 00:06:22]}
Bf5 {[%clk 00:47:46]} {[%emt 00:01:49]} 16. Qxb4 {[%clk 00:29:10]} {[%emt
00:00:48]} Nxb3 {[%clk 00:47:35]} {[%emt 00:00:41]} 17. axb3 {[%clk 00:25:23]}
{[%emt 00:04:17]} Rb8 {[%clk 00:38:08]} {[%emt 00:09:56]} 18. Qd2 {[%clk
00:23:19]} {[%emt 00:02:30]} Ne5 {[%clk 00:37:49]} {[%emt 00:00:53]} 19. Rg3
{[%clk 00:20:15]} {[%emt 00:03:33]} Be7 {[%clk 00:35:39]} {[%emt 00:02:41]} 20.
Nc3 {[%clk 00:17:16]} {[%emt 00:03:30]} O-O {[%clk 00:35:12]} {[%emt 00:00:56]}
21. Be2 {[%clk 00:15:48]} {[%emt 00:01:58]} Nc6 {[%clk 00:33:00]} {[%emt
00:02:43]} 22. Bg4 {[%clk 00:12:25]} {[%emt 00:03:53]} Nb4 {[%clk 00:31:00]}
{[%emt 00:02:29]} 23. Bxf5 {[%clk 00:12:31]} {[%emt 00:00:25]} Rxf5 {[%clk
00:31:28]} {[%emt 00:00:01]} 24. O-O-O {[%clk 00:12:40]} {[%emt 00:00:22]} Rc8
{[%clk 00:31:22]} {[%emt 00:00:36]} 25. Qd4 {[%clk 00:08:41]} {[%emt 00:04:30]}
d5 {[%clk 00:24:38]} {[%emt 00:07:14]} 26. Qb6 {[%clk 00:08:53]} {[%emt
00:00:17]} Qxb6 {[%clk 00:24:51]} {[%emt 00:00:17]} 27. Bxb6 {[%clk 00:09:18]}
{[%emt 00:00:05]} Bxg5+ {[%clk 00:22:04]} {[%emt 00:03:17]} 28. Kb1 {[%emt
00:00:15]} Bf6 {[%clk 00:21:24]} {[%emt 00:01:08]} 29. Rg4 {[%clk 00:09:59]}
{[%emt 00:00:06]} Nc6 {[%clk 00:21:33]} {[%emt 00:00:21]} 30. Ra4 {[%clk
00:10:18]} {[%emt 00:00:12]} a5 {[%clk 00:21:47]} {[%emt 00:00:15]} 31. Nb5
{[%clk 00:06:14]} {[%emt 00:04:34]} Rb8 {[%clk 00:10:32]} {[%emt 00:11:46]} 32.
Nd6 {[%clk 00:06:36]} {[%emt 00:00:07]} Rxb6 {[%clk 00:10:49]} {[%emt
00:00:13]} 33. Nxf5 {[%clk 00:07:04]} {[%emt 00:00:02]} exf5 {[%clk 00:11:14]}
{[%emt 00:00:05]} 34. Rxd5 {[%clk 00:07:33]} {[%emt 00:00:02]} g6 {[%clk
00:10:40]} {[%emt 00:01:04]} 35. Rc4 {[%clk 00:06:57]} {[%emt 00:01:06]} Be7
{[%clk 00:10:41]} {[%emt 00:00:28]} 36. Rd7 {[%clk 00:06:03]} {[%emt 00:01:24]}
Kf7 {[%clk 00:09:41]} {[%emt 00:01:31]} 37. Rc7 {[%clk 00:06:27]} {[%emt
00:00:06]} Nb4 {[%clk 00:09:32]} {[%emt 00:00:39]} 38. c3 {[%clk 00:06:27]}
{[%emt 00:00:30]} Nd5 {[%clk 00:06:37]} {[%emt 00:03:25]} 39. Ra7 {[%clk
00:06:44]} {[%emt 00:00:12]} Ne3 {[%clk 00:03:39]} {[%emt 00:03:29]} 40. Rh4
{[%clk 00:19:04]} {[%emt 00:03:11]} h5 {[%clk 00:17:23]} {[%emt 00:01:46]} 41.
Rh3 {[%clk 00:19:28]} {[%emt 00:00:06]} Re6 {[%clk 00:17:22]} {[%emt 00:00:31]}
42. Rxa5 {[%clk 00:19:36]} {[%emt 00:00:23]} h4 {[%clk 00:17:33]} {[%emt
00:00:19]} 43. b4 {[%clk 00:15:22]} {[%emt 00:04:44]} g5 {[%clk 00:17:31]}
{[%emt 00:00:31]} 44. Rxe3 {[%clk 00:12:31]} {[%emt 00:03:22]} Rxe3 {[%clk
00:17:55]} {[%emt 00:00:05]} 45. Rxf5+ {[%clk 00:12:59]} {[%emt 00:00:02]} Ke6
{[%clk 00:18:19]} {[%emt 00:00:07]} 46. Rf2 {[%clk 00:13:17]} {[%emt 00:00:12]}
g4 {[%clk 00:18:29]} {[%emt 00:00:19]} 47. b5 {[%clk 00:13:40]} {[%emt
00:00:06]} Bd6 {[%clk 00:17:40]} {[%emt 00:01:19]} 48. c4 {[%clk 00:13:36]}
{[%emt 00:00:35]} Rh3 {[%clk 00:17:24]} {[%emt 00:00:46]} 49. Rg2 {[%clk
00:13:56]} {[%emt 00:00:10]} g3 {[%clk 00:16:27]} {[%emt 00:01:27]} 50. hxg3
{[%clk 00:14:21]} {[%emt 00:00:05]} hxg3 {[%emt 00:01:31]} 0-1